bitfinex-derivatives/quotes_BNBF0:USTF0_20250521
["timestamp","ask_amount","ask_price","bid_price","bid_amount"]
[1747826205042,3.82008945,654.94,653.61,0.30578253]
[1747826205246,3.82008945,654.94,653.62,0.62023848]
[1747826205441,3.82008945,654.94,653.61,0.30578253]
[1747826205645,3.82008945,654.94,653.62,0.62022539]
[1747826205849,3.82008945,654.94,653.44,0.30578253]
[1747826206049,3.82008945,654.94,653.45,0.92598584]
[1747826206349,3.82008945,654.94,653.46,2.08974959]
[1747826206551,3.82008945,654.94,653.47,2.08974959]
[1747826206751,3.82008945,654.94,653.48,0.92598584]
[1747826206952,3.82008945,654.94,653.49,0.92598584]
[1747826207152,3.82008945,654.94,653.5,0.92598584]
[1747826207347,3.82008945,654.94,653.51,0.92598584]
[1747826207549,3.82008945,654.94,653.52,1.78396765]
[1747826207746,3.82008945,654.94,653.53,0.6202039]
[1747826207948,3.82008945,654.94,653.54,0.6202039]
[1747826208150,3.82008945,654.94,653.55,0.6202039]
[1747826208351,3.82008945,654.94,653.56,0.6202039]
[1747826208549,3.82008945,654.94,653.57,0.9259838]
[1747826208749,3.82008945,654.94,653.58,2.08898886]
[1747826208949,3.82008945,654.94,653.59,0.9259838]
[1747826209254,3.82008945,654.94,653.6,2.08898886]
[1747826209456,3.82008945,654.94,653.61,0.9259838]
[1747826209754,3.82008945,654.94,653.62,2.08898886]
[1747826209949,3.82008945,654.94,653.63,0.9259838]
[1747826210150,3.82008945,654.94,653.64,2.08898886]
[1747826210350,3.82008945,654.94,653.65,0.9259838]
[1747826210555,1.077,654.99,653.66,0.9259838]
[1747826210755,1.077,654.99,653.67,1.78320896]
[1747826210955,1.077,654.99,653.68,0.6202039]
[1747826211256,1.077,654.99,653.69,0.6202039]
[1747826211551,1.077,654.99,653.7,0.6202039]
[1747826211751,1.077,654.99,653.71,0.6202039]
[1747826211956,1.077,654.99,653.72,0.6202039]
[1747826212153,1.077,654.99,653.73,0.6202039]
[1747826212352,1.077,654.99,653.74,0.6202039]
[1747826212553,1.077,654.99,653.75,0.6202039]
[1747826212755,1.077,654.99,653.76,0.6202039]
[1747826212953,1.077,654.99,653.77,0.6202039]
[1747826213155,1.077,654.99,653.76,0.30578253]
[1747826213960,3.82008945,655.27,653.76,0.30578253]
[1747826214460,3.82008945,655.27,653.77,0.30578253]
[1747826215556,3.82008945,655.27,653.78,0.30578253]
[1747826216360,1.354,655.26,653.78,0.30578253]
[1747826217561,1.354,655.26,653.79,0.30578253]
[1747826219261,1.354,655.26,653.8,0.30578253]
[1747826220261,1.354,655.26,653.48,0.30197727]
[1747826220262,1.354,655.26,653.81,0.30578253]
[1747826220963,1.354,655.26,653.51,0.30197727]
[1747826221164,1.354,655.26,653.52,2.08604764]
[1747826221361,1.354,655.26,653.53,0.92346323]
[1747826221561,1.354,655.26,653.54,2.08604764]
[1747826221762,1.354,655.26,653.55,0.92346323]
[1747826221963,1.354,655.26,653.56,0.92346323]
[1747826222158,1.354,655.26,653.57,0.92346323]
[1747826222360,1.354,655.26,653.58,2.08604764]
[1747826222561,1.354,655.26,653.59,0.61775504]
[1747826222760,1.354,655.26,653.59,1.78033945]
[1747826223063,1.354,655.26,653.6,1.78033945]
[1747826223264,1.354,655.26,653.61,0.61775504]
[1747826223767,1.354,655.26,653.62,1.4682926]
[1747826224062,1.354,655.26,653.63,0.61775504]
[1747826224265,1.354,655.26,653.62,1.4682926]
[1747826224459,1.354,655.26,653.63,0.61797072]
[1747826224662,1.354,655.26,653.64,0.61797072]
[1747826224862,1.354,655.26,653.62,0.30570819]
[1747826224863,1.354,655.26,653.65,0.61797072]
[1747826225064,1.354,655.26,653.66,0.61797072]
[1747826226066,1.354,655.26,653.67,0.92376919]
[1747826226264,1.354,655.26,653.68,0.618061]
[1747826227769,1.354,655.26,653.69,0.92381553]
[1747826227971,1.354,655.26,653.69,0.30570819]
[1747826228170,1.354,655.26,653.7,0.61814676]
[1747826228360,1.354,655.26,653.69,0.30570819]
[1747826228668,1.354,655.26,653.7,0.61814821]
[1747826228867,1.354,655.26,653.69,0.30570819]
[1747826229071,1.354,655.26,653.7,0.61816035]
[1747826229267,1.354,655.26,653.7,0.30570819]
[1747826230869,1.354,655.26,653.71,0.30570819]
[1747826231374,1.354,655.26,653.72,0.61832202]
[1747826231675,1.354,655.26,653.73,0.61832202]
[1747826231973,1.354,655.26,653.74,0.61832202]
[1747826232169,1.354,655.26,653.75,0.61839943]
[1747826232371,1.354,655.26,653.74,0.30570819]
[1747826232569,1.354,655.26,653.75,0.618397]
[1747826232774,1.354,655.26,653.74,0.30570819]
[1747826232974,1.354,655.26,653.76,0.30570819]
[1747826234174,1.354,655.26,653.77,0.61863076]
[1747826234375,1.354,655.26,653.77,0.30570819]
[1747826235380,1.354,655.26,653.78,0.61882123]
[1747826235575,1.354,655.26,653.77,0.30570819]
[1747826236176,3.82008945,655.2,653.78,0.30570819]
[1747826237375,3.82008945,655.2,653.79,0.30570819]
[1747826239377,3.82008945,655.2,653.57,0.30570819]
[1747826239578,3.82008945,655.2,653.58,2.09087731]
[1747826239877,3.82008945,655.2,653.59,0.30570915]
[1747826240079,3.82008945,655.2,653.6,0.30570915]
[1747826240272,3.82008945,655.2,653.61,0.92484916]
[1747826240474,3.82008945,655.2,653.62,2.09095644]
[1747826240674,3.82008945,655.2,653.63,0.9248657]
[1747826240875,3.82008945,655.2,653.64,2.09095644]
[1747826241078,3.82008945,655.2,653.65,0.9248657]
[1747826241279,3.82008945,655.2,653.66,0.9248657]
[1747826241480,3.82008945,655.2,653.67,0.61915655]
[1747826241681,3.82008945,655.2,653.68,0.61918294]
[1747826241882,3.82008945,655.2,653.69,1.78527368]
[1747826242075,3.82008945,655.2,653.7,0.61918294]
[1747826242381,3.82008945,655.2,653.71,0.61918294]
[1747826242579,3.82008945,655.2,653.72,0.61918294]
[1747826243285,3.82008945,655.2,652.49,0.67964005]
[1747826243584,3.82008945,655.2,652.5,1.47231799]
[1747826243778,3.82008945,655.2,652.51,0.30571029]
[1747826243978,3.82008945,655.2,652.52,1.47231799]
[1747826244279,3.82008945,655.2,652.53,1.47231799]
[1747826244585,3.82008945,655.2,652.54,1.47231799]
[1747826244783,3.82008945,655.2,652.55,0.30571029]
[1747826244982,3.82008945,655.2,652.56,0.30571029]
[1747826245282,3.82008945,655.2,652.57,0.30571029]
[1747826245483,3.82008945,655.2,652.58,0.30571029]
[1747826245679,3.82008945,655.2,652.59,0.30571029]
[1747826245877,5.09408945,655.2,652.6,0.30571029]
[1747826246078,5.09408945,655.2,652.61,0.30571029]
[1747826246383,5.09408945,655.2,652.62,1.47231799]
[1747826246578,5.09408945,655.2,652.63,0.30571029]
[1747826246783,5.09408945,655.2,652.64,1.47231799]
[1747826247080,5.09408945,655.2,652.65,0.30571029]
[1747826247282,5.09408945,655.2,652.66,0.30571029]
[1747826247482,5.09408945,655.2,652.67,0.30571029]
[1747826247683,5.09408945,655.2,652.68,1.47231799]
[1747826247882,5.09408945,655.2,652.69,0.30571029]
[1747826248078,5.09408945,655.2,652.7,1.47231799]
[1747826248379,5.09408945,655.2,652.71,0.30571029]
[1747826248578,5.09408945,655.2,652.72,0.30571029]
[1747826248784,5.09408945,655.2,652.73,0.30571029]
[1747826249080,5.09408945,655.2,652.74,1.47231799]
[1747826249280,5.09408945,655.2,652.75,0.30571029]
[1747826249484,5.09408945,655.2,652.76,0.30571029]
[1747826249687,5.09408945,655.2,652.77,1.47231799]
[1747826249885,5.09408945,655.2,652.78,0.30571029]
[1747826250089,5.09408945,655.2,652.79,1.47231799]
[1747826250285,5.09408945,655.2,652.8,0.30571029]
[1747826250483,5.09408945,655.2,652.81,1.47231799]
[1747826250678,5.09408945,655.2,652.82,0.30571029]
[1747826250883,5.09408945,655.2,652.83,0.30571029]
[1747826251085,3.82008945,655.04,652.84,0.30571029]
[1747826251285,3.82008945,655.04,652.85,0.30571029]
[1747826251483,3.82008945,655.04,652.86,1.47231799]
[1747826251689,3.82008945,655.04,652.87,0.30571029]
[1747826251987,3.82008945,655.04,652.88,1.47231799]
[1747826252186,3.82008945,655.04,652.89,0.30571029]
[1747826252390,3.82008945,655.04,652.9,1.47231799]
[1747826252684,3.82008945,655.04,652.9,1.1666077]
[1747826252881,3.82008945,655.04,652.91,1.47232086]
[1747826253083,3.82008945,655.04,652.92,1.47232086]
[1747826253388,3.82008945,655.04,652.93,1.47232086]
[1747826253590,3.82008945,655.04,652.94,0.30571316]
[1747826253787,3.82008945,655.04,652.95,1.47232086]
[1747826253984,3.82008945,655.04,652.96,0.30571316]
[1747826254186,3.82008945,655.04,652.97,0.30571316]
[1747826254388,3.82008945,655.04,652.98,1.47232086]
[1747826254585,3.82008945,655.04,652.99,0.30571316]
[1747826254783,3.82008945,655.04,653.0,1.47232086]
[1747826254982,3.82008945,655.04,653.01,0.30571316]
[1747826255183,3.82008945,655.04,653.02,0.30571316]
[1747826255387,3.82008945,655.04,653.03,2.06993866]
[1747826255601,3.82008945,655.04,653.04,0.90333096]
[1747826255788,3.82008945,655.04,653.05,0.90335015]
[1747826255989,3.82008945,655.04,653.06,2.06995785]
[1747826256183,3.82008945,655.04,653.07,0.90335015]
[1747826256384,3.82008945,655.04,653.08,2.06995785]
[1747826256588,3.82008945,655.04,653.09,0.90335015]
[1747826256883,3.82008945,655.04,653.1,0.90335015]
[1747826257087,3.82008945,655.04,653.11,2.06995785]
[1747826257283,3.82008945,655.04,653.12,0.90335015]
[1747826257485,3.82008945,655.04,653.13,0.90352979]
[1747826257687,3.82008945,655.04,653.14,2.07013749]
[1747826257986,3.82008945,655.04,653.15,0.90352979]
[1747826258184,3.82008945,655.04,653.16,1.20926153]
[1747826258384,3.82008945,655.04,653.17,0.90352979]
[1747826258589,3.82008945,655.04,653.18,0.90352979]
[1747826258887,3.82008945,655.04,653.19,2.07013749]
[1747826259091,3.82008945,655.04,653.2,0.90352979]
[1747826259291,3.82008945,655.04,653.21,0.90352979]
[1747826259488,3.82008945,655.04,653.22,0.90352979]
[1747826259689,3.82008945,655.04,653.23,0.90352979]
[1747826259991,3.82008945,655.04,653.24,2.07013749]
[1747826260191,3.82008945,655.04,653.25,0.90352979]
[1747826260385,3.82008945,655.04,653.26,2.07013749]
[1747826260683,3.82008945,655.04,653.27,0.90352979]
[1747826260885,3.82008945,655.04,653.28,1.20926153]
[1747826261086,3.82008945,655.04,653.29,0.9037519]
[1747826261389,3.82008945,655.04,653.3,0.9037519]
[1747826261687,3.82008945,655.04,653.31,2.0703596]
[1747826261886,3.82008945,655.04,653.32,0.9037519]
[1747826262089,3.82008945,655.04,653.33,2.0703596]
[1747826262390,3.82008945,655.04,653.34,2.0703596]
[1747826262591,3.82008945,655.04,653.35,0.9037519]
[1747826262792,3.82008945,655.04,653.36,0.9037519]
[1747826262992,3.82008945,655.04,653.34,1.47233944]
[1747826262993,3.82008945,655.04,653.37,2.0703596]
[1747826263192,3.82008945,655.04,653.38,0.9037519]
[1747826263392,3.82008945,655.04,653.37,1.1666077]
[1747826263393,3.82008945,655.04,653.39,2.0703596]
[1747826263597,3.82008945,655.04,653.4,0.9037519]
[1747826263792,3.82008945,655.04,653.41,2.0703596]
[1747826263987,3.82008945,655.04,653.42,0.9037519]
[1747826264188,3.82008945,655.04,653.43,0.9037519]
[1747826264400,3.82008945,655.04,653.44,0.90375129]
[1747826264591,3.82008945,655.04,653.45,0.90374971]
[1747826264788,3.82008945,655.04,653.46,2.07035741]
[1747826264988,3.82008945,655.04,653.47,0.90374971]
[1747826265193,3.82008945,655.04,653.48,0.90374971]
[1747826265393,3.82008945,655.04,653.49,0.90374971]
[1747826265589,3.82008945,655.04,653.5,0.90374971]
[1747826265790,3.82008945,655.04,653.51,2.07035741]
[1747826265993,3.82008945,655.04,653.52,0.90374971]
[1747826266188,1.274,655.2,653.53,0.90439579]
[1747826266390,1.274,655.2,653.54,2.07100349]
[1747826266691,1.274,655.2,653.55,0.90439579]
[1747826266893,1.274,655.2,653.56,2.07100349]
[1747826267094,1.274,655.2,653.57,0.90439579]
[1747826267295,1.274,655.2,653.58,2.07100349]
[1747826267494,1.274,655.2,653.59,0.90439579]
[1747826267697,1.274,655.2,653.6,2.37673523]
[1747826267890,1.274,655.2,653.61,0.90439579]
[1747826268094,1.274,655.2,653.62,0.90439579]
[1747826268293,1.274,655.2,653.63,2.07100349]
[1747826268491,1.274,655.2,653.64,0.90439579]
[1747826268696,1.274,655.2,653.65,0.90439579]
[1747826269000,1.274,655.2,653.66,2.07100349]
[1747826269190,1.274,655.2,653.67,2.07100349]
[1747826269394,1.274,655.2,653.68,0.90439579]
[1747826269593,1.274,655.2,653.69,2.07100349]
[1747826269792,1.274,655.2,653.7,0.90482068]
[1747826269995,1.274,655.2,653.71,2.07142838]
[1747826270299,1.274,655.2,653.72,1.21055242]
[1747826270497,1.274,655.2,653.73,0.90482068]
[1747826270698,1.274,655.2,653.72,0.30573174]
[1747826270699,1.274,655.2,653.74,1.76569822]
[1747826270893,1.274,655.2,653.75,0.59909052]
[1747826271099,1.274,655.2,653.76,0.59909052]
[1747826271295,1.274,655.2,653.77,1.76569822]
[1747826271599,1.274,655.2,653.78,0.5990759]
[1747826271900,1.274,655.2,653.79,0.5990759]
[1747826272099,1.274,655.2,653.8,0.5990759]
[1747826272398,1.274,655.2,653.81,0.5990759]
[1747826272594,1.274,655.2,653.82,0.5990759]
[1747826272798,1.274,655.2,653.83,0.30573174]
[1747826273995,1.274,655.2,653.84,0.30573174]
[1747826275597,1.274,655.2,653.85,0.30573174]
[1747826276803,1.274,655.2,653.86,0.30573174]
[1747826278402,1.274,655.2,653.87,0.30573174]
[1747826279507,3.82008945,655.02,653.45,0.38994502]
[1747826279706,3.82008945,655.02,653.46,0.90466817]
[1747826280005,3.82008945,655.02,653.47,2.07497657]
[1747826280205,3.82008945,655.02,653.48,0.90466817]
[1747826280401,3.82008945,655.02,653.49,2.07497657]
[1747826280605,3.82008945,655.02,653.5,0.90466817]
[1747826280905,3.82008945,655.02,653.51,0.90466817]
[1747826281104,3.82008945,655.02,653.52,0.90466817]
[1747826281303,3.82008945,655.02,653.53,2.07497657]
[1747826281499,3.82008945,655.02,653.54,0.90466817]
[1747826281705,3.82008945,655.02,653.55,0.90466817]
[1747826281903,3.82008945,655.02,653.56,0.90466817]
[1747826282103,3.82008945,655.02,653.57,0.90466817]
[1747826282305,3.82008945,655.02,653.58,2.07497657]
[1747826282500,3.82008945,655.02,653.59,0.90466817]
[1747826282803,3.82008945,655.02,653.6,0.90466817]
[1747826283001,3.82008945,655.02,653.61,2.07497657]
[1747826283200,3.82008945,655.02,653.62,0.90466817]
[1747826283505,0.044,655.01,653.63,1.21039781]
[1747826283702,0.044,655.01,653.64,2.07497657]
[1747826283906,0.044,655.01,653.65,0.90466817]
[1747826284101,0.044,655.01,653.66,0.90466817]
[1747826284306,0.044,655.01,653.67,2.07497657]
[1747826284507,0.044,655.01,653.68,0.90466817]
[1747826284703,0.044,655.01,653.69,0.90466817]
[1747826284903,0.044,655.01,653.7,0.90466905]
[1747826285108,0.044,655.01,653.71,0.90466905]
[1747826285308,0.044,655.01,653.72,2.07497745]
[1747826285508,0.044,655.01,653.73,0.90466905]
[1747826285708,0.044,655.01,653.74,1.76924671]
[1747826286008,0.044,655.01,653.75,0.59893831]
[1747826286408,0.044,655.01,653.76,0.59893831]
[1747826286709,0.044,655.01,653.77,0.90469308]
[1747826286903,0.044,655.01,653.78,0.59896344]
[1747826288011,0.044,655.01,653.79,0.30572964]
[1747826288208,0.044,655.01,653.8,0.59896344]
[1747826289511,0.044,655.01,653.81,0.30572964]
[1747826290612,0.044,655.01,653.52,0.38994502]
[1747826290807,0.044,655.01,653.53,0.90472634]
[1747826291007,0.044,655.01,653.54,2.07419474]
[1747826291210,0.044,655.01,653.55,0.90472634]
[1747826291408,0.044,655.01,653.56,0.90472634]
[1747826291712,0.044,655.01,653.57,1.21045598]
[1747826291915,0.044,655.01,653.58,0.90472159]
[1747826292213,0.044,655.01,653.59,0.90472159]
[1747826292407,0.044,655.01,653.59,1.1694684]
[1747826292614,0.044,655.01,653.6,0.90472635]
[1747826292814,0.044,655.01,653.61,2.07419475]
[1747826292815,3.82008945,654.77,653.61,2.07419475]
[1747826293113,3.82008945,654.77,653.62,0.90472635]
[1747826293313,3.82008945,654.77,653.63,2.07419475]
[1747826293512,3.82008945,654.77,653.64,0.90472635]
[1747826293712,3.82008945,654.77,653.65,2.0742046]
[1747826293912,3.82008945,654.77,653.66,0.9047362]
[1747826294113,3.82008945,654.77,653.67,2.0742046]
[1747826294413,3.82008945,654.77,653.68,0.9047362]
[1747826294613,3.82008945,654.77,653.69,0.9047362]
[1747826294813,3.82008945,654.77,653.7,2.0742046]
[1747826295011,3.82008945,654.77,653.71,0.9047362]
[1747826295214,3.82008945,654.77,653.72,0.9047362]
[1747826295410,3.82008945,654.77,653.73,2.07422945]
[1747826295717,3.82008945,654.77,653.74,0.59903032]
[1747826295914,3.82008945,654.77,653.75,0.90474406]
[1747826296110,3.82008945,654.77,653.76,2.07421246]
[1747826296314,3.82008945,654.77,653.77,0.90474406]
[1747826296512,3.82008945,654.77,653.78,0.90474406]
[1747826296711,3.82008945,654.77,653.79,2.07421246]
[1747826297015,3.82008945,654.77,653.8,2.3799421]
[1747826297317,3.82008945,654.77,653.81,0.90474406]
[1747826297517,3.82008945,654.77,653.82,0.90474406]
[1747826297817,3.82008945,654.77,653.83,0.90474406]
[1747826298017,3.82008945,654.77,653.84,0.90474406]
[1747826298218,3.82008945,654.77,653.85,0.90474406]
[1747826298417,3.82008945,654.77,653.86,0.59903032]
[1747826298614,3.82008945,655.55,653.87,1.76849872]
[1747826298817,3.82008945,655.55,653.88,0.59843737]
[1747826299113,3.82008945,655.55,653.89,1.76790577]
[1747826299317,3.82008945,655.55,653.9,0.59843737]
[1747826299515,3.82008945,655.55,653.91,0.59843737]
[1747826299715,3.82008945,655.55,653.92,0.59843737]
[1747826299916,0.044,655.54,653.93,0.59843737]
[1747826300115,0.044,655.54,653.86,0.30572964]
[1747826300316,0.044,655.54,653.94,0.30572964]
[1747826301719,0.044,655.54,653.95,0.30572964]
[1747826303119,0.044,655.54,653.96,0.30572964]
[1747826305219,0.044,655.54,653.97,0.30572964]
[1747826306520,0.044,655.54,653.98,0.30572964]
[1747826307720,0.044,655.54,653.62,0.29176825]
[1747826307916,0.044,655.54,653.63,0.90354785]
[1747826308116,0.044,655.54,653.64,2.07003695]
[1747826308321,0.044,655.54,653.65,0.90354785]
[1747826308515,0.044,655.54,653.66,0.90354785]
[1747826308718,0.044,655.54,653.67,0.90354785]
[1747826309016,0.044,655.54,653.68,0.90354785]
[1747826309324,0.044,655.54,653.69,1.20918491]
[1747826309516,0.044,655.54,653.7,0.90351855]
[1747826309721,0.044,655.54,653.71,2.07000765]
[1747826309917,0.044,655.54,653.72,0.90351855]
[1747826310123,0.044,655.54,653.73,2.07000765]
[1747826310324,0.044,655.54,653.74,0.90351855]
[1747826310624,0.044,655.54,653.75,2.07000765]
[1747826310820,0.044,655.54,653.76,0.90351855]
[1747826311021,0.044,655.54,653.77,1.76434136]
[1747826311320,0.044,655.54,653.78,0.59785226]
[1747826311523,0.044,655.54,653.79,0.59785226]
[1747826311720,0.044,655.54,653.8,0.59785226]
[1747826311921,0.044,655.54,653.81,0.59785226]
[1747826312124,0.044,655.54,653.75,0.30566636]
[1747826312323,0.044,655.54,653.76,0.59771942]
[1747826312525,0.044,655.54,653.77,0.90338578]
[1747826312726,0.044,655.54,653.78,0.59771942]
[1747826312922,0.044,655.54,653.77,0.30566636]
[1747826313127,0.044,655.54,653.78,0.59770192]
[1747826313427,0.044,655.54,653.79,0.59770192]
[1747826313723,0.044,655.54,653.8,0.59770192]
[1747826313924,0.044,655.54,653.77,0.30566636]
[1747826314128,3.82008945,655.32,653.8,0.30566636]
[1747826315433,3.82008945,655.32,653.81,0.30566636]
[1747826317135,3.82008945,655.32,653.82,0.30566636]
[1747826318629,3.82008945,655.32,653.83,0.30566636]
[1747826320234,3.82008945,655.32,653.61,0.29176825]
[1747826320432,3.82008945,655.32,653.62,0.90354736]
[1747826320631,3.82008945,655.32,653.63,0.90354736]
[1747826320835,3.82008945,655.32,653.64,0.90354736]
[1747826321035,3.82008945,655.32,653.65,2.37503436]
[1747826321336,3.82008945,655.32,653.66,0.90354736]
[1747826321638,3.82008945,655.32,653.67,0.90357052]
[1747826321933,3.82008945,655.32,653.68,2.06939116]
[1747826322140,3.82008945,655.32,653.69,0.90357052]
[1747826322338,3.82008945,655.32,653.7,0.90357052]
[1747826322533,3.82008945,655.32,653.71,0.90357052]
[1747826322731,3.82008945,655.32,653.72,2.06939116]
[1747826322936,3.82008945,655.32,653.73,0.90357052]
[1747826323136,3.82008945,655.32,653.74,0.90357052]
[1747826323334,3.82008945,655.32,653.73,1.16582064]
[1747826323538,3.82008945,655.32,653.74,0.90355002]
[1747826323733,3.82008945,655.32,653.75,2.06937066]
[1747826323938,3.82008945,655.32,653.76,0.90355002]
[1747826324135,3.82008945,655.32,653.77,0.90355002]
[1747826324436,3.82008945,655.32,653.78,1.20921638]
[1747826324634,3.82008945,655.32,653.79,0.90355002]
[1747826324840,3.82008945,655.32,653.8,0.59788463]
[1747826325036,3.82008945,655.32,653.79,1.16582064]
[1747826325037,3.82008945,655.32,653.81,0.59788463]
[1747826325240,3.82008945,655.32,653.82,1.76364281]
[1747826325441,3.82008945,655.32,653.83,0.59782217]
[1747826325842,3.82008945,655.32,653.84,0.59782217]
[1747826327043,3.82008945,655.32,653.85,0.5978278]
[1747826327237,3.82008945,655.32,653.86,0.5978278]
[1747826327438,3.82008945,655.32,653.87,0.90349416]
[1747826327642,3.82008945,655.32,653.88,0.5978278]
[1747826327843,3.82008945,655.32,653.89,0.5978278]
[1747826328040,3.82008945,655.32,653.9,0.5978278]
[1747826328238,3.82008945,655.32,653.87,0.30566636]
[1747826328441,3.82008945,655.32,653.88,0.59777396]
[1747826328745,3.82008945,655.32,653.89,0.59777613]
[1747826328946,3.82008945,655.32,653.87,0.30566636]
[1747826329243,3.82008945,655.44,653.9,0.30566636]
[1747826329645,0.044,655.32,653.9,0.30566636]
[1747826330346,0.044,655.32,653.91,0.30566636]
[1747826332046,0.044,655.32,653.92,0.30566636]
[1747826333249,0.044,655.32,653.93,0.30566636]
[1747826334444,0.044,655.32,653.94,0.30566636]
[1747826335446,0.044,655.32,653.95,0.30566636]
[1747826337049,0.044,655.32,653.96,0.30566636]
[1747826338450,0.044,655.32,653.97,0.30566636]
[1747826340052,0.044,655.32,653.98,0.30566636]
[1747826341151,0.044,655.32,653.99,0.30566636]
[1747826343056,3.82008945,655.24,653.7,0.29176825]
[1747826343253,3.82008945,655.24,653.71,0.90376398]
[1747826343449,3.82008945,655.24,653.72,2.07083748]
[1747826343650,3.82008945,655.24,653.73,0.90376398]
[1747826343850,3.82008945,655.24,653.74,0.90376398]
[1747826344050,3.82008945,655.24,653.75,0.90376398]
[1747826344357,3.82008945,655.24,653.76,2.07083748]
[1747826344557,3.82008945,655.24,653.77,0.90376398]
[1747826344758,3.82008945,655.24,653.78,2.07083748]
[1747826344950,3.82008945,655.24,653.79,0.90376398]
[1747826345155,3.82008945,655.24,653.8,0.90376398]
[1747826345357,3.82008945,655.24,653.81,0.90376398]
[1747826345658,3.82008945,655.24,653.82,0.90376309]
[1747826345857,3.82008945,655.24,653.83,2.07083659]
[1747826346054,3.82008945,655.24,653.84,0.90376309]
[1747826346255,3.82008945,655.24,653.85,0.59812113]
[1747826346457,3.82008945,655.24,653.85,0.90376405]
[1747826346660,3.82008945,655.24,653.86,1.76519463]
[1747826346860,3.82008945,655.24,653.87,0.59812113]
[1747826347261,3.82008945,655.24,653.88,0.59812113]
[1747826347464,3.82008945,655.24,653.89,0.59812113]
[1747826347762,3.82008945,655.24,653.9,0.59812113]
[1747826349265,3.82008945,655.24,653.91,0.30564292]
[1747826349465,3.82008945,655.24,653.92,0.59812113]
[1747826350266,3.82008945,655.24,653.93,0.30564292]
[1747826350463,3.82008945,655.24,653.94,0.59812113]
[1747826350766,3.82008945,655.24,653.93,0.30564292]
[1747826350967,3.82008945,655.24,653.94,0.5986109]
[1747826351161,3.82008945,655.24,653.93,0.30564292]
[1747826351364,3.82008945,655.24,653.94,0.59863291]
[1747826351561,3.82008945,655.24,653.95,0.59863291]
[1747826351762,3.82008945,655.24,653.96,0.59863291]
[1747826351964,3.82008945,655.24,653.95,0.30564292]
[1747826352163,3.82008945,655.24,653.96,0.59881441]
[1747826352365,3.82008945,655.24,653.95,0.30564292]
[1747826352566,3.82008945,655.24,653.96,0.59891692]
[1747826352767,3.82008945,655.24,653.97,0.59891692]
[1747826352967,3.82008945,655.24,653.95,0.30564292]
[1747826353170,3.82008945,655.24,653.96,0.59890961]
[1747826353370,3.82008945,655.24,653.98,0.30564292]
[1747826353969,3.82008945,655.24,653.99,0.59900802]
[1747826354169,3.82008945,655.24,653.98,0.30564292]
[1747826354369,3.82008945,655.24,653.99,0.59891714]
[1747826354566,3.82008945,655.24,654.0,0.30564292]
[1747826354767,3.82008945,655.24,654.01,0.59891714]
[1747826354968,3.82008945,655.24,654.02,1.16809331]
[1747826355168,3.82008945,655.24,654.03,0.59891714]
[1747826355670,3.82008945,655.24,654.04,0.59891714]
[1747826355869,3.82008945,655.24,654.0,0.30564292]
[1747826355870,3.82008945,655.24,654.05,0.59891714]
[1747826356067,3.82008945,655.24,654.06,0.59938882]
[1747826356365,3.82008945,655.24,654.07,0.59938882]
[1747826356562,3.82008945,655.24,654.05,0.30564292]
[1747826356772,3.82008945,655.24,654.06,0.599274]
[1747826356966,3.82008945,655.24,654.07,0.599274]
[1747826357170,3.82008945,655.24,654.05,0.30564292]
[1747826357363,3.82008945,655.24,654.06,0.59927698]
[1747826357565,3.82008945,655.24,654.07,0.59927698]
[1747826357768,3.82008945,655.24,654.05,0.30564292]
[1747826358068,3.82008945,655.24,654.06,0.59919041]
[1747826358370,3.82008945,655.52,654.08,0.30564292]
[1747826359370,3.82008945,655.52,654.09,0.30564292]
[1747826360772,3.82008945,655.52,654.1,0.30564292]
[1747826362574,3.82008945,655.52,654.11,0.59863659]
[1747826362766,3.82008945,655.52,654.12,0.59863659]
[1747826362971,3.82008945,655.52,654.13,0.59863659]
[1747826363173,3.82008945,655.52,654.14,0.59863659]
[1747826363372,3.82008945,655.52,654.15,0.59863659]
[1747826363574,3.82008945,655.52,654.16,0.59863659]
[1747826363868,3.82008945,655.52,654.17,0.59824461]
[1747826364073,3.82008945,655.52,654.11,0.30564292]
[1747826364266,3.82008945,655.52,654.12,0.59824548]
[1747826364471,0.99345759,657.31,654.17,0.30564292]
[1747826364472,3.82008945,655.75,654.17,0.30564292]
[1747826366173,3.82008945,655.75,654.18,0.30564292]
[1747826367676,3.82008945,655.75,654.19,0.30564292]
[1747826368979,3.82008945,655.75,653.86,0.29176825]
[1747826369178,3.82008945,655.75,653.87,0.90578356]
[1747826369378,3.82008945,655.75,653.88,0.90578356]
[1747826369674,3.82008945,655.75,653.89,0.90578356]
[1747826369875,3.82008945,655.75,653.9,0.90578356]